[Event "Titled Tuesday Blitz May 4 2021"]
[White "Sharapov, Evgeny"]
[Black "Napoli, Nicolo"]
[WhiteFideId "14103133"]
[BlackFideId "813702"]
[WhiteElo "2367"]
[BlackElo "2330"]
[Result "1-0"]
[Round "03"]
[TimeControl "180+1"]
[Date "2021.05.04"]
[WhiteClock "0:00:47"]
[BlackClock "0:00:04"]

1. c4 {[%clk 0:02:59]}  c6 {[%clk 0:02:54]} 2. Nc3 {[%clk 0:02:58]}  d5 {[%clk 0:02:53]} 3. cxd5 {[%clk 0:02:58]}  cxd5 {[%clk 0:02:54]} 4. d4 {[%clk 0:02:58]}  Nf6 {[%clk 0:02:52]} 5. Nf3 {[%clk 0:02:57]}  Nc6 {[%clk 0:02:49]} 6. Bf4 {[%clk 0:02:57]}  Ne4 {[%clk 0:02:39]} 7. e3 {[%clk 0:02:53]}  Qa5 {[%clk 0:02:33]} 8. Qb3 {[%clk 0:02:49]}  e6 {[%clk 0:02:21]} 9. Bd3 {[%clk 0:02:42]}  Bd6 {[%clk 0:02:08]} 10. Bxd6 {[%clk 0:02:33]}  Nxd6 {[%clk 0:02:04]} 11. O-O {[%clk 0:02:32]}  O-O {[%clk 0:01:56]} 12. Rfc1 {[%clk 0:02:30]}  h6 {[%clk 0:01:52]} 13. Ne5 {[%clk 0:02:19]}  Ne7 {[%clk 0:01:24]} 14. Nb5 {[%clk 0:02:11]}  Nxb5 {[%clk 0:01:21]} 15. Qxb5 {[%clk 0:02:10]}  Qxb5 {[%clk 0:01:17]} 16. Bxb5 {[%clk 0:02:10]}  a6 {[%clk 0:01:18]} 17. Ba4 {[%clk 0:02:04]}  f6 {[%clk 0:01:16]} 18. Nd7 {[%clk 0:02:03]}  Rd8 {[%clk 0:01:10]} 19. Nb6 {[%clk 0:02:01]}  Rb8 {[%clk 0:01:09]} 20. Rc7 {[%clk 0:01:59]}  Kf8 {[%clk 0:01:06]} 21. Rac1 {[%clk 0:01:58]}  e5 {[%clk 0:00:50]} 22. Bd7 {[%clk 0:01:40]}  Bxd7 {[%clk 0:00:21]} 23. Nxd7+ {[%clk 0:01:39]}  Rxd7 {[%clk 0:00:22]} 24. Rxd7 {[%clk 0:01:38]}  Nc6 {[%clk 0:00:18]} 25. dxe5 {[%clk 0:01:30]}  fxe5 {[%clk 0:00:14]} 26. Rxd5 {[%clk 0:01:29]}  Ke7 {[%clk 0:00:14]} 27. Rcd1 {[%clk 0:01:26]}  b5 {[%clk 0:00:11]} 28. Rd7+ {[%clk 0:01:24]}  Kf8 {[%clk 0:00:11]} 29. Rc7 {[%clk 0:01:20]}  Nd8 {[%clk 0:00:06]} 30. Rdd7 {[%clk 0:01:16]}  Ne6 {[%clk 0:00:05]} 31. Ra7 {[%clk 0:01:12]}  Rc8 {[%clk 0:00:04]} 32. h4 {[%clk 0:01:05]}  Rc1+ {[%clk 0:00:04]} 33. Kh2 {[%clk 0:01:05]}  Rc8 {[%clk 0:00:05]} 34. Rd6 {[%clk 0:01:00]}  Nc5 {[%clk 0:00:04]} 35. b4 {[%clk 0:00:51]}  Ne4 {[%clk 0:00:03]} 36. Rdxa6 {[%clk 0:00:50]}  Nxf2 {[%clk 0:00:03]} 37. Ra8 {[%clk 0:00:48]}  Ng4+ {[%clk 0:00:03]} 38. Kg3 {[%clk 0:00:48]}  Rxa8 {[%clk 0:00:03]} 39. Rxa8+ {[%clk 0:00:47]}  Ke7 {[%clk 0:00:04]} 40. Kxg4 {[%clk 0:00:47]} 1-0


[Site "https://www.chess.com"]

[Event "Titled Tuesday Blitz May 4 2021"]
[White "Shkapenko, Pavel"]
[Black "Abdisalimov, Abdimalik"]
[WhiteFideId "4151933"]
[BlackFideId "14206323"]
[WhiteElo "2386"]
[BlackElo "2389"]
[Result "1/2-1/2"]
[Round "03"]
[TimeControl "180+1"]
[Date "2021.05.04"]
[WhiteClock "0:00:26"]
[BlackClock "0:00:56"]

1. e4 {[%clk 0:03:00]}  c5 {[%clk 0:02:59]} 2. c3 {[%clk 0:03:00]}  d5 {[%clk 0:02:58]} 3. exd5 {[%clk 0:03:00]}  Qxd5 {[%clk 0:02:59]} 4. Nf3 {[%clk 0:03:01]}  Bg4 {[%clk 0:02:56]} 5. Qa4+ {[%clk 0:02:59]}  Bd7 {[%clk 0:02:53]} 6. Qb3 {[%clk 0:02:59]}  Qxb3 {[%clk 0:02:50]} 7. axb3 {[%clk 0:03:00]}  Nc6 {[%clk 0:02:50]} 8. Na3 {[%clk 0:03:00]}  e5 {[%clk 0:02:47]} 9. Nb5 {[%clk 0:02:55]}  Kd8 {[%clk 0:02:39]} 10. d4 {[%clk 0:02:49]}  cxd4 {[%clk 0:02:36]} 11. cxd4 {[%clk 0:02:50]}  Bb4+ {[%clk 0:02:22]} 12. Bd2 {[%clk 0:02:50]}  Bxd2+ {[%clk 0:02:19]} 13. Kxd2 {[%clk 0:02:51]}  Nxd4 {[%clk 0:02:18]} 14. Nbxd4 {[%clk 0:02:01]}  exd4 {[%clk 0:02:18]} 15. Bc4 {[%clk 0:02:00]}  Nf6 {[%clk 0:02:16]} 16. Ng5 {[%clk 0:01:56]}  Re8 {[%clk 0:02:12]} 17. Nxf7+ {[%clk 0:01:55]}  Kc7 {[%clk 0:02:10]} 18. f3 {[%clk 0:01:46]}  Bc6 {[%clk 0:02:08]} 19. Rhe1 {[%clk 0:01:44]}  b5 {[%clk 0:02:06]} 20. Bd3 {[%clk 0:01:43]}  g6 {[%clk 0:02:00]} 21. Ne5 {[%clk 0:01:35]}  Nd7 {[%clk 0:01:57]} 22. Nxc6 {[%clk 0:01:33]}  Kxc6 {[%clk 0:01:58]} 23. Rxe8 {[%clk 0:01:32]}  Rxe8 {[%clk 0:01:56]} 24. Rxa7 {[%clk 0:01:31]}  Ne5 {[%clk 0:01:43]} 25. Be4+ {[%clk 0:01:23]}  Kc5 {[%clk 0:01:42]} 26. Rxh7 {[%clk 0:01:18]}  Kb4 {[%clk 0:01:41]} 27. Rb7 {[%clk 0:01:14]}  Re6 {[%clk 0:01:35]} 28. h4 {[%clk 0:01:07]}  Kc5 {[%clk 0:01:33]} 29. Rb8 {[%clk 0:00:59]}  Kb4 {[%clk 0:01:32]} 30. f4 {[%clk 0:00:47]}  Nd7 {[%clk 0:01:30]} 31. Rd8 {[%clk 0:00:46]}  Rxe4 {[%clk 0:01:30]} 32. Rxd7 {[%clk 0:00:45]}  Rxf4 {[%clk 0:01:31]} 33. g3 {[%clk 0:00:44]}  Rf2+ {[%clk 0:01:28]} 34. Kd3 {[%clk 0:00:42]}  Kxb3 {[%clk 0:01:29]} 35. Rb7 {[%clk 0:00:39]}  b4 {[%clk 0:01:26]} 36. Kxd4 {[%clk 0:00:39]}  Rxb2 {[%clk 0:01:26]} 37. Rb6 {[%clk 0:00:38]}  Rd2+ {[%clk 0:01:23]} 38. Ke5 {[%clk 0:00:37]}  Kc3 {[%clk 0:01:22]} 39. Rc6+ {[%clk 0:00:36]}  Kb2 {[%clk 0:01:20]} 40. Rxg6 {[%clk 0:00:36]}  b3 {[%clk 0:01:19]} 41. Rb6 {[%clk 0:00:36]}  Rg2 {[%clk 0:01:14]} 42. Kf4 {[%clk 0:00:35]}  Kc2 {[%clk 0:01:14]} 43. h5 {[%clk 0:00:36]}  b2 {[%clk 0:01:13]} 44. g4 {[%clk 0:00:35]}  Rh2 {[%clk 0:01:13]} 45. Kg5 {[%clk 0:00:29]}  Rh3 {[%clk 0:01:12]} 46. Rxb2+ {[%clk 0:00:27]}  Kxb2 {[%clk 0:01:12]} 47. Kg6 {[%clk 0:00:28]}  Kc3 {[%clk 0:01:11]} 48. g5 {[%clk 0:00:28]}  Kd4 {[%clk 0:01:10]} 49. Kg7 {[%clk 0:00:28]}  Rxh5 {[%clk 0:01:08]} 50. g6 {[%clk 0:00:29]}  Ke5 {[%clk 0:01:08]} 51. Kf7 {[%clk 0:00:29]}  Rf5+ {[%clk 0:01:08]} 52. Ke7 {[%clk 0:00:25]}  Rg5 {[%clk 0:01:04]} 53. Kf7 {[%clk 0:00:25]}  Kf5 {[%clk 0:00:59]} 54. g7 {[%clk 0:00:25]}  Rxg7+ {[%clk 0:00:56]} 55. Kxg7 {[%clk 0:00:26]} 1/2-1/2


[Site "https://www.chess.com"]

[Event "Titled Tuesday Blitz May 4 2021"]
[White "Shtyka, Sergey"]
[Black "Mirzoev, Azer"]
[WhiteFideId "4138465"]
[BlackFideId "13400304"]
[WhiteElo "2102"]
[BlackElo "2525"]
[Result "1-0"]
[Round "03"]
[TimeControl "180+1"]
[Date "2021.05.04"]
[WhiteClock "0:00:50"]
[BlackClock "0:00:24"]

1. e4 {[%clk 0:03:00]}  e5 {[%clk 0:02:58]} 2. Nf3 {[%clk 0:03:00]}  Nc6 {[%clk 0:02:58]} 3. Nc3 {[%clk 0:03:00]}  Nf6 {[%clk 0:02:57]} 4. Bb5 {[%clk 0:03:00]}  Bd6 {[%clk 0:02:56]} 5. O-O {[%clk 0:02:59]}  O-O {[%clk 0:02:55]} 6. h3 {[%clk 0:02:58]}  a6 {[%clk 0:02:54]} 7. Be2 {[%clk 0:02:58]}  Re8 {[%clk 0:02:52]} 8. d3 {[%clk 0:02:58]}  Bf8 {[%clk 0:02:48]} 9. Bg5 {[%clk 0:02:57]}  h6 {[%clk 0:02:47]} 10. Bh4 {[%clk 0:02:57]}  d6 {[%clk 0:02:47]} 11. Nd5 {[%clk 0:02:52]}  Be7 {[%clk 0:02:47]} 12. Nxe7+ {[%clk 0:02:49]}  Qxe7 {[%clk 0:02:46]} 13. c3 {[%clk 0:02:46]}  Nd8 {[%clk 0:02:43]} 14. Nh2 {[%clk 0:02:37]}  g5 {[%clk 0:02:37]} 15. Bg3 {[%clk 0:02:37]}  Ne6 {[%clk 0:02:35]} 16. Ng4 {[%clk 0:02:34]}  Kh7 {[%clk 0:02:23]} 17. Nxf6+ {[%clk 0:02:33]}  Qxf6 {[%clk 0:02:23]} 18. Bg4 {[%clk 0:02:33]}  Nc5 {[%clk 0:02:10]} 19. Bxc8 {[%clk 0:02:25]}  Raxc8 {[%clk 0:02:09]} 20. f3 {[%clk 0:02:22]}  Ne6 {[%clk 0:02:07]} 21. Kh2 {[%clk 0:02:05]}  Rcd8 {[%clk 0:02:02]} 22. Qe2 {[%clk 0:02:03]}  Qg6 {[%clk 0:01:56]} 23. Rg1 {[%clk 0:02:00]}  Rf8 {[%clk 0:01:48]} 24. Rad1 {[%clk 0:01:58]}  f5 {[%clk 0:01:44]} 25. exf5 {[%clk 0:01:55]}  Qxf5 {[%clk 0:01:44]} 26. Qe4 {[%clk 0:01:54]}  Nc5 {[%clk 0:01:37]} 27. Qxf5+ {[%clk 0:01:51]}  Rxf5 {[%clk 0:01:37]} 28. d4 {[%clk 0:01:51]}  exd4 {[%clk 0:01:36]} 29. Rxd4 {[%clk 0:01:41]}  Re8 {[%clk 0:01:35]} 30. Rd2 {[%clk 0:01:40]}  Rf7 {[%clk 0:01:33]} 31. Re1 {[%clk 0:01:40]}  Rxe1 {[%clk 0:01:30]} 32. Bxe1 {[%clk 0:01:41]}  Re7 {[%clk 0:01:29]} 33. Bf2 {[%clk 0:01:40]}  Na4 {[%clk 0:01:29]} 34. Bd4 {[%clk 0:01:36]}  b6 {[%clk 0:01:13]} 35. b3 {[%clk 0:01:34]}  Nc5 {[%clk 0:01:13]} 36. Bxc5 {[%clk 0:01:34]}  bxc5 {[%clk 0:01:12]} 37. Kg3 {[%clk 0:01:34]}  Re3 {[%clk 0:01:06]} 38. c4 {[%clk 0:01:33]}  Kg6 {[%clk 0:01:05]} 39. Kf2 {[%clk 0:01:33]}  Rc3 {[%clk 0:01:04]} 40. Re2 {[%clk 0:01:27]}  Kf6 {[%clk 0:01:02]} 41. Kg3 {[%clk 0:01:26]}  a5 {[%clk 0:00:58]} 42. h4 {[%clk 0:01:23]}  a4 {[%clk 0:00:57]} 43. hxg5+ {[%clk 0:01:24]}  hxg5 {[%clk 0:00:57]} 44. Rb2 {[%clk 0:01:23]}  a3 {[%clk 0:00:49]} 45. Re2 {[%clk 0:01:22]}  Rc1 {[%clk 0:00:50]} 46. Kf2 {[%clk 0:01:16]}  Rb1 {[%clk 0:00:48]} 47. Ke3 {[%clk 0:01:14]}  c6 {[%clk 0:00:47]} 48. Kd3 {[%clk 0:01:10]}  d5 {[%clk 0:00:43]} 49. cxd5 {[%clk 0:01:08]}  cxd5 {[%clk 0:00:43]} 50. Rc2 {[%clk 0:01:08]}  Rb2 {[%clk 0:00:37]} 51. Rxb2 {[%clk 0:01:03]}  axb2 {[%clk 0:00:36]} 52. Kc2 {[%clk 0:01:03]}  Ke5 {[%clk 0:00:36]} 53. a4 {[%clk 0:01:01]}  d4 {[%clk 0:00:29]} 54. Kxb2 {[%clk 0:00:58]}  Kd5 {[%clk 0:00:27]} 55. Kc2 {[%clk 0:00:57]}  Kc6 {[%clk 0:00:26]} 56. Kd3 {[%clk 0:00:52]}  Kb6 {[%clk 0:00:26]} 57. g3 {[%clk 0:00:52]}  Kc6 {[%clk 0:00:26]} 58. f4 {[%clk 0:00:51]}  g4 {[%clk 0:00:25]} 59. f5 {[%clk 0:00:50]}  Kd5 {[%clk 0:00:24]} 60. a5 {[%clk 0:00:50]}  Ke5 {[%clk 0:00:24]} 61. a6 {[%clk 0:00:50]} 1-0


[Site "https://www.chess.com"]

[Event "Titled Tuesday Blitz May 4 2021"]
[White "Sikorova, Olga"]
[Black "Rodriguez, Santiago"]
[WhiteFideId "307033"]
[BlackFideId "3000591"]
[WhiteElo "2188"]
[BlackElo "2256"]
[Result "1-0"]
[Round "03"]
[TimeControl "180+1"]
[Date "2021.05.04"]
[WhiteClock "0:00:08"]
[BlackClock "0:00:06"]

1. c4 {[%clk 0:03:00]}  e5 {[%clk 0:02:53]} 2. g3 {[%clk 0:03:00]}  Bc5 {[%clk 0:02:52]} 3. Bg2 {[%clk 0:03:00]}  Nc6 {[%clk 0:02:52]} 4. Nc3 {[%clk 0:02:59]}  d6 {[%clk 0:02:53]} 5. e3 {[%clk 0:02:59]}  a6 {[%clk 0:02:52]} 6. Nge2 {[%clk 0:02:59]}  Ba7 {[%clk 0:02:52]} 7. d4 {[%clk 0:02:53]}  h5 {[%clk 0:02:47]} 8. h4 {[%clk 0:02:49]}  Bg4 {[%clk 0:02:37]} 9. f3 {[%clk 0:02:44]}  Bd7 {[%clk 0:02:25]} 10. d5 {[%clk 0:02:30]}  Nce7 {[%clk 0:02:22]} 11. e4 {[%clk 0:02:30]}  f5 {[%clk 0:02:18]} 12. Bg5 {[%clk 0:02:26]}  Nf6 {[%clk 0:02:16]} 13. Qd2 {[%clk 0:02:15]}  fxe4 {[%clk 0:02:14]} 14. Nxe4 {[%clk 0:02:11]}  Nf5 {[%clk 0:02:06]} 15. b4 {[%clk 0:01:49]}  Qe7 {[%clk 0:01:38]} 16. Rc1 {[%clk 0:01:32]}  Nd4 {[%clk 0:01:24]} 17. c5 {[%clk 0:01:23]}  O-O {[%clk 0:01:16]} 18. Nxd4 {[%clk 0:01:19]}  exd4 {[%clk 0:01:15]} 19. Qxd4 {[%clk 0:01:19]}  Bb5 {[%clk 0:01:05]} 20. Kd2 {[%clk 0:01:10]}  Nxe4+ {[%clk 0:01:03]} 21. fxe4 {[%clk 0:01:07]}  Qe5 {[%clk 0:01:01]} 22. Qxe5 {[%clk 0:01:02]}  Rf2+ {[%clk 0:01:00]} 23. Ke1 {[%clk 0:00:52]}  Re2+ {[%clk 0:00:57]} 24. Kd1 {[%clk 0:00:52]}  dxe5 {[%clk 0:00:56]} 25. Bf3 {[%clk 0:00:51]}  Rxa2 {[%clk 0:00:52]} 26. Re1 {[%clk 0:00:27]}  a5 {[%clk 0:00:39]} 27. Bd2 {[%clk 0:00:19]}  axb4 {[%clk 0:00:37]} 28. Re3 {[%clk 0:00:19]}  Rf8 {[%clk 0:00:33]} 29. Ke1 {[%clk 0:00:16]}  Ra3 {[%clk 0:00:18]} 30. Kf2 {[%clk 0:00:13]}  Ra2 {[%clk 0:00:15]} 31. Ke1 {[%clk 0:00:13]}  b6 {[%clk 0:00:12]} 32. Bxb4 {[%clk 0:00:12]}  bxc5 {[%clk 0:00:10]} 33. Bxc5 {[%clk 0:00:12]}  Bxc5 {[%clk 0:00:09]} 34. Rxc5 {[%clk 0:00:12]}  c6 {[%clk 0:00:08]} 35. dxc6 {[%clk 0:00:12]}  Ba4 {[%clk 0:00:08]} 36. Rc1 {[%clk 0:00:11]}  Rc8 {[%clk 0:00:07]} 37. c7 {[%clk 0:00:11]}  Bb5 {[%clk 0:00:07]} 38. Rec3 {[%clk 0:00:11]}  Ba6 {[%clk 0:00:07]} 39. Bxh5 {[%clk 0:00:10]}  Rg2 {[%clk 0:00:06]} 40. Bg4 {[%clk 0:00:09]}  Rg1+ {[%clk 0:00:06]} 41. Kf2 {[%clk 0:00:09]}  Rxc1 {[%clk 0:00:04]} 42. Rxc1 {[%clk 0:00:09]}  Rf8+ {[%clk 0:00:05]} 43. Kg1 {[%clk 0:00:08]}  Bc8 {[%clk 0:00:05]} 44. Bxc8 {[%clk 0:00:07]}  Rxc8 {[%clk 0:00:06]} 45. Kf2 {[%clk 0:00:08]}  Kf7 {[%clk 0:00:07]} 46. Kf3 {[%clk 0:00:08]}  Ke6 {[%clk 0:00:08]} 47. Kg4 {[%clk 0:00:09]}  Kf6 {[%clk 0:00:06]} 48. Rc6+ {[%clk 0:00:08]}  Kf7 {[%clk 0:00:06]} 49. Kf5 {[%clk 0:00:08]} 1-0


[Site "https://www.chess.com"]

[Event "Titled Tuesday Blitz May 4 2021"]
[White "Skoberne, Jure"]
[Black "Delgadillo, Adonay"]
[WhiteFideId "14604299"]
[BlackFideId "3301915"]
[WhiteElo "2559"]
[BlackElo "2103"]
[Result "1/2-1/2"]
[Round "03"]
[TimeControl "180+1"]
[Date "2021.05.04"]
[WhiteClock "0:00:10"]
[BlackClock "0:00:16"]

1. d4 {[%clk 0:03:00]}  Nf6 {[%clk 0:02:59]} 2. c4 {[%clk 0:03:01]}  g6 {[%clk 0:02:57]} 3. Nf3 {[%clk 0:03:01]}  d6 {[%clk 0:02:58]} 4. g3 {[%clk 0:03:02]}  Bg7 {[%clk 0:02:58]} 5. Bg2 {[%clk 0:03:02]}  O-O {[%clk 0:02:59]} 6. O-O {[%clk 0:03:03]}  Nbd7 {[%clk 0:03:00]} 7. Nc3 {[%clk 0:03:03]}  c6 {[%clk 0:03:00]} 8. e4 {[%clk 0:03:04]}  e5 {[%clk 0:03:00]} 9. h3 {[%clk 0:03:05]}  Re8 {[%clk 0:02:59]} 10. Re1 {[%clk 0:03:05]}  Qb6 {[%clk 0:02:57]} 11. c5 {[%clk 0:03:04]}  dxc5 {[%clk 0:02:55]} 12. dxe5 {[%clk 0:03:04]}  Nxe5 {[%clk 0:02:54]} 13. Nxe5 {[%clk 0:03:03]}  Rxe5 {[%clk 0:02:55]} 14. f4 {[%clk 0:03:01]}  Re8 {[%clk 0:02:53]} 15. e5 {[%clk 0:03:01]}  Nd5 {[%clk 0:02:35]} 16. Nxd5 {[%clk 0:03:01]}  cxd5 {[%clk 0:02:36]} 17. Qxd5 {[%clk 0:03:01]}  Rd8 {[%clk 0:02:33]} 18. Qf3 {[%clk 0:02:56]}  c4+ {[%clk 0:02:31]} 19. Qf2 {[%clk 0:02:47]}  Bf8 {[%clk 0:02:16]} 20. Be3 {[%clk 0:02:46]}  Qa6 {[%clk 0:02:11]} 21. g4 {[%clk 0:02:41]}  Qa5 {[%clk 0:01:37]} 22. a3 {[%clk 0:02:17]}  Be6 {[%clk 0:01:26]} 23. Red1 {[%clk 0:01:33]}  Rd3 {[%clk 0:01:11]} 24. Rxd3 {[%clk 0:01:23]}  cxd3 {[%clk 0:01:12]} 25. Bxb7 {[%clk 0:01:24]}  Rb8 {[%clk 0:01:12]} 26. Be4 {[%clk 0:01:24]}  Rb3 {[%clk 0:01:01]} 27. Rd1 {[%clk 0:01:12]}  Qb5 {[%clk 0:01:00]} 28. Rd2 {[%clk 0:01:12]}  Bd5 {[%clk 0:00:57]} 29. Qf3 {[%clk 0:01:08]}  Bc5 {[%clk 0:00:45]} 30. f5 {[%clk 0:00:57]}  Bxe3+ {[%clk 0:00:23]} 31. Qxe3 {[%clk 0:00:55]}  Bxe4 {[%clk 0:00:23]} 32. Qxe4 {[%clk 0:00:56]}  Qc5+ {[%clk 0:00:23]} 33. Kg2 {[%clk 0:00:54]}  Qc1 {[%clk 0:00:19]} 34. Rf2 {[%clk 0:00:15]}  Rxb2 {[%clk 0:00:19]} 35. Qxd3 {[%clk 0:00:14]}  Rxf2+ {[%clk 0:00:18]} 36. Kxf2 {[%clk 0:00:15]}  Qf4+ {[%clk 0:00:19]} 37. Kg2 {[%clk 0:00:14]}  Qxe5 {[%clk 0:00:19]} 38. fxg6 {[%clk 0:00:13]}  hxg6 {[%clk 0:00:18]} 39. Kf3 {[%clk 0:00:13]}  Kg7 {[%clk 0:00:18]} 40. Qb3 {[%clk 0:00:08]}  f5 {[%clk 0:00:17]} 41. gxf5 {[%clk 0:00:06]}  Qxf5+ {[%clk 0:00:16]} 42. Kg3 {[%clk 0:00:07]}  a5 {[%clk 0:00:17]} 43. Qe3 {[%clk 0:00:05]}  g5 {[%clk 0:00:16]} 44. Qa7+ {[%clk 0:00:02]}  Kg6 {[%clk 0:00:15]} 45. Qa6+ {[%clk 0:00:03]}  Kh5 {[%clk 0:00:16]} 46. Qe2+ {[%clk 0:00:04]}  Kg6 {[%clk 0:00:16]} 47. Qe8+ {[%clk 0:00:04]}  Kf6 {[%clk 0:00:15]} 48. Qf8+ {[%clk 0:00:04]}  Ke5 {[%clk 0:00:16]} 49. Qxf5+ {[%clk 0:00:03]}  Kxf5 {[%clk 0:00:16]} 50. Kf3 {[%clk 0:00:04]}  Kf6 {[%clk 0:00:11]} 51. Kg4 {[%clk 0:00:04]}  Kg6 {[%clk 0:00:11]} 52. a4 {[%clk 0:00:02]}  Kf6 {[%clk 0:00:10]} 53. h4 {[%clk 0:00:03]}  gxh4 {[%clk 0:00:10]} 54. Kxh4 {[%clk 0:00:04]}  Ke5 {[%clk 0:00:11]} 55. Kg3 {[%clk 0:00:04]}  Kd4 {[%clk 0:00:12]} 56. Kf3 {[%clk 0:00:04]}  Kc4 {[%clk 0:00:12]} 57. Ke2 {[%clk 0:00:05]}  Kb4 {[%clk 0:00:13]} 58. Kd2 {[%clk 0:00:06]}  Kxa4 {[%clk 0:00:14]} 59. Kc1 {[%clk 0:00:07]}  Kb3 {[%clk 0:00:15]} 60. Kb1 {[%clk 0:00:08]}  a4 {[%clk 0:00:14]} 61. Ka1 {[%clk 0:00:09]}  a3 {[%clk 0:00:15]} 62. Kb1 {[%clk 0:00:09]}  a2+ {[%clk 0:00:15]} 63. Ka1 {[%clk 0:00:10]}  Ka3 {[%clk 0:00:16]} 1/2-1/2


[Site "https://www.chess.com"]

[Event "Titled Tuesday Blitz May 4 2021"]
[White "Smietanska, Wiktoria"]
[Black "Kostiukov, Alexandr"]
[WhiteFideId "21869359"]
[BlackFideId "14108100"]
[WhiteElo "1780"]
[BlackElo "2240"]
[Result "0-1"]
[Round "03"]
[TimeControl "180+1"]
[Date "2021.05.04"]
[WhiteClock "0:01:19"]
[BlackClock "0:00:54"]

1. e4 {[%clk 0:03:00]}  c5 {[%clk 0:02:59]} 2. d4 {[%clk 0:03:00]}  cxd4 {[%clk 0:02:58]} 3. c3 {[%clk 0:03:00]}  g6 {[%clk 0:02:58]} 4. cxd4 {[%clk 0:03:00]}  d5 {[%clk 0:02:58]} 5. e5 {[%clk 0:02:59]}  Nc6 {[%clk 0:02:58]} 6. Nc3 {[%clk 0:02:59]}  Bg7 {[%clk 0:02:58]} 7. Nf3 {[%clk 0:02:59]}  Bg4 {[%clk 0:02:56]} 8. Be2 {[%clk 0:02:59]}  Nh6 {[%clk 0:02:56]} 9. h3 {[%clk 0:02:58]}  Bxf3 {[%clk 0:02:55]} 10. Bxf3 {[%clk 0:02:58]}  Nf5 {[%clk 0:02:55]} 11. Bxd5 {[%clk 0:02:50]}  Nfxd4 {[%clk 0:02:53]} 12. f4 {[%clk 0:02:42]}  O-O {[%clk 0:02:35]} 13. Kf1 {[%clk 0:02:41]}  Qa5 {[%clk 0:02:07]} 14. Kg1 {[%clk 0:02:39]}  Rad8 {[%clk 0:02:04]} 15. Kh2 {[%clk 0:02:37]}  e6 {[%clk 0:02:04]} 16. Bxc6 {[%clk 0:02:35]}  Nxc6 {[%clk 0:02:05]} 17. Qg4 {[%clk 0:02:27]}  h5 {[%clk 0:01:56]} 18. Qg3 {[%clk 0:02:26]}  Qb4 {[%clk 0:01:47]} 19. b3 {[%clk 0:02:20]}  Nd4 {[%clk 0:01:35]} 20. Bb2 {[%clk 0:02:16]}  Nf5 {[%clk 0:01:35]} 21. Qf2 {[%clk 0:02:12]}  Rd3 {[%clk 0:01:32]} 22. Rac1 {[%clk 0:02:06]}  Rfd8 {[%clk 0:01:30]} 23. Rhd1 {[%clk 0:02:04]}  Rxd1 {[%clk 0:01:21]} 24. Rxd1 {[%clk 0:02:05]}  Rxd1 {[%clk 0:01:18]} 25. Nxd1 {[%clk 0:02:06]}  Qe4 {[%clk 0:01:13]} 26. Nc3 {[%clk 0:02:00]}  Qd3 {[%clk 0:01:11]} 27. g3 {[%clk 0:01:40]}  b6 {[%clk 0:01:02]} 28. Nb5 {[%clk 0:01:23]}  Qxb5 {[%clk 0:00:58]} 29. g4 {[%clk 0:01:19]}  hxg4 {[%clk 0:00:55]} 30. hxg4 {[%clk 0:01:20]}  Nh6 {[%clk 0:00:54]} 31. g5 {[%clk 0:01:19]}  Ng4+ {[%clk 0:00:54]} 0-1


[Site "https://www.chess.com"]

[Event "Titled Tuesday Blitz May 4 2021"]
[White "Sokolov, Andrey M."]
[Black "Ward-Tsh"]
[WhiteFideId "4171438"]
[WhiteElo "2349"]
[BlackElo "2514"]
[Result "0-1"]
[Round "03"]
[TimeControl "180+1"]
[Date "2021.05.04"]
[WhiteClock "0:00:12"]
[BlackClock "0:00:55"]

1. d4 {[%clk 0:03:00]}  d5 {[%clk 0:02:58]} 2. Bf4 {[%clk 0:02:59]}  Nf6 {[%clk 0:02:57]} 3. e3 {[%clk 0:02:58]}  c5 {[%clk 0:02:57]} 4. c3 {[%clk 0:02:58]}  Nc6 {[%clk 0:02:54]} 5. Nd2 {[%clk 0:02:57]}  g6 {[%clk 0:02:50]} 6. Ngf3 {[%clk 0:02:53]}  Bg7 {[%clk 0:02:48]} 7. Bd3 {[%clk 0:02:48]}  O-O {[%clk 0:02:47]} 8. h3 {[%clk 0:02:45]}  Qb6 {[%clk 0:02:41]} 9. Rb1 {[%clk 0:02:43]}  Nh5 {[%clk 0:02:34]} 10. Bh2 {[%clk 0:02:40]}  Re8 {[%clk 0:02:32]} 11. Ne5 {[%clk 0:02:30]}  Nxe5 {[%clk 0:02:25]} 12. dxe5 {[%clk 0:02:30]}  Bf8 {[%clk 0:02:11]} 13. O-O {[%clk 0:02:16]}  Ng7 {[%clk 0:02:08]} 14. Qf3 {[%clk 0:02:04]}  Bf5 {[%clk 0:02:06]} 15. Bxf5 {[%clk 0:02:01]}  Nxf5 {[%clk 0:02:06]} 16. Rfd1 {[%clk 0:01:49]}  e6 {[%clk 0:02:03]} 17. e4 {[%clk 0:01:48]}  Ne7 {[%clk 0:02:03]} 18. exd5 {[%clk 0:01:46]}  exd5 {[%clk 0:02:04]} 19. c4 {[%clk 0:01:39]}  d4 {[%clk 0:01:57]} 20. Ne4 {[%clk 0:01:38]}  Bg7 {[%clk 0:01:57]} 21. Nd6 {[%clk 0:01:32]}  Rf8 {[%clk 0:01:57]} 22. Qxb7 {[%clk 0:01:30]}  Nc6 {[%clk 0:01:57]} 23. f4 {[%clk 0:01:17]}  Rab8 {[%clk 0:01:32]} 24. Qxb6 {[%clk 0:01:16]}  Rxb6 {[%clk 0:01:33]} 25. b3 {[%clk 0:01:00]}  Nb4 {[%clk 0:01:28]} 26. Rd2 {[%clk 0:00:53]}  Ra6 {[%clk 0:01:26]} 27. a4 {[%clk 0:00:50]}  Rb8 {[%clk 0:01:25]} 28. Ne4 {[%clk 0:00:43]}  Ra5 {[%clk 0:01:22]} 29. g4 {[%clk 0:00:41]}  Nc6 {[%clk 0:01:22]} 30. Nf2 {[%clk 0:00:36]}  Rxa4 {[%clk 0:01:21]} 31. Nd3 {[%clk 0:00:34]}  Rxc4 {[%clk 0:01:20]} 32. f5 {[%clk 0:00:31]}  Rc3 {[%clk 0:01:19]} 33. f6 {[%clk 0:00:27]}  Bh6 {[%clk 0:01:19]} 34. Rdd1 {[%clk 0:00:26]}  Be3+ {[%clk 0:01:19]} 35. Kg2 {[%clk 0:00:25]}  c4 {[%clk 0:01:19]} 36. Nc5 {[%clk 0:00:20]}  d3 {[%clk 0:01:15]} 37. e6 {[%clk 0:00:19]}  Rc2+ {[%clk 0:01:14]} 38. Kh1 {[%clk 0:00:18]}  Rxh2+ {[%clk 0:01:13]} 39. Kxh2 {[%clk 0:00:18]}  Bxc5 {[%clk 0:01:10]} 40. bxc4 {[%clk 0:00:16]}  Rxb1 {[%clk 0:01:08]} 41. exf7+ {[%clk 0:00:16]}  Kxf7 {[%clk 0:01:08]} 42. Rxb1 {[%clk 0:00:15]}  Kxf6 {[%clk 0:01:07]} 43. Rd1 {[%clk 0:00:15]}  Ne5 {[%clk 0:01:06]} 44. Kg3 {[%clk 0:00:15]}  Be3 {[%clk 0:01:06]} 45. c5 {[%clk 0:00:14]}  Bxc5 {[%clk 0:01:05]} 46. Kf4 {[%clk 0:00:14]}  g5+ {[%clk 0:00:54]} 47. Ke4 {[%clk 0:00:14]}  a5 {[%clk 0:00:54]} 48. Rf1+ {[%clk 0:00:13]}  Ke6 {[%clk 0:00:54]} 49. Rf5 {[%clk 0:00:13]}  Bd6 {[%clk 0:00:55]} 50. Rxg5 {[%clk 0:00:12]}  d2 {[%clk 0:00:55]} 0-1


[Site "https://www.chess.com"]